bitfinex/quotes_ETHUSD_20251011
["timestamp","ask_amount","ask_price","bid_price","bid_amount"]
[1760141733591,1.29234117,3892.5,3887.2,7.6051]
[1760141733772,1.24121653,3892.3,3887.2,7.6051]
[1760141734000,0.87158108,3893.0,3887.2,7.6051]
[1760141734001,1.26128592,3892.1,3887.2,7.6051]
[1760141734325,1.23717437,3891.9,3887.2,7.6051]
[1760141734483,2.27966598,3891.7,3887.2,8.8351]
[1760141734813,0.99999999,3891.5,3887.2,7.53976709]
[1760141735121,0.99999999,3890.7,3887.2,6.23302182]
[1760141735414,1.26453986,3889.9,3887.2,4.91272182]
[1760141735613,1.2362371,3889.7,3887.2,4.91272182]
[1760141735818,2.19058634,3889.8,3887.2,6.14272182]
[1760141736021,1.20076397,3889.6,3887.2,4.92]
[1760141736324,0.44507266,3889.5,3887.2,4.6106]
[1760141736645,0.99999999,3888.9,3887.2,4.6106]
[1760141736811,1.20155056,3888.7,3887.2,4.6106]
[1760141737006,1.20789472,3888.5,3887.2,4.6106]
[1760141737211,1.25888477,3888.3,3887.2,5.8406]
[1760141737412,1.22117294,3888.1,3887.2,5.8406]
[1760141737614,1.2869727,3887.9,3887.2,1.41851774]
[1760141737855,0.01477266,3887.8,3886.7,0.9204]
[1760141738144,1.21445789,3887.8,3886.7,0.9204]
[1760141738361,0.01477266,3887.8,3886.7,0.6108]
[1760141738566,0.1899332,3889.4,3886.7,1.8408]
[1760141738714,0.99999999,3890.6,3886.7,1.8408]
[1760141738715,1.23178463,3890.2,3886.7,1.8408]
[1760141738912,1.20163279,3890.0,3886.7,1.8408]
[1760141739127,1.21385945,3889.8,3886.7,1.8408]
[1760141739324,2.20076396,3889.6,3886.7,1.8408]
[1760141739523,1.23343589,3889.4,3886.7,1.8408]
[1760141739769,1.27209606,3889.2,3886.7,1.711]
[1760141739922,1.22158839,3889.0,3886.7,2.8062337]
[1760141740259,0.01477266,3888.9,3886.7,2.8062337]
[1760141740449,1.26548515,3888.8,3886.7,2.8062337]
[1760141740655,1.2478508,3888.6,3886.7,2.8062337]
[1760141740855,1.21623256,3888.4,3886.7,2.8062337]
[1760141741036,1.26206133,3888.2,3886.7,2.8062337]
[1760141741373,0.01477266,3888.1,3886.7,0.31430362]
[1760141741723,1.24939791,3888.0,3886.7,0.31430362]
[1760141742071,0.44507266,3887.9,3886.2,34.26354188]
[1760141742230,1.21445789,3887.8,3886.2,33.04581676]
[1760141742427,1.20064118,3887.6,3886.2,33.04581676]
[1760141742632,1.29546073,3887.4,3886.2,33.04581676]
[1760141742829,1.20515795,3887.2,3886.2,34.27581676]
[1760141743063,1.22185046,3887.0,3886.2,34.14104325]
[1760141743265,1.23199136,3886.8,3886.2,34.14104325]
[1760141743472,1.23617186,3886.6,3886.2,34.14104325]
[1760141743632,0.44507266,3886.5,3886.2,30.71105246]
[1760141743930,1.25835927,3886.3,3886.2,29.76221902]
[1760141744139,2.25835926,3886.3,3886.2,29.34816175]
[1760141744340,0.16273602,3887.2,3886.2,25.81583329]
[1760141744558,0.20068966,3886.3,3886.2,23.39066567]
[1760141744882,1.20068965,3886.3,3886.2,23.39066567]
[1760141745086,0.99999999,3886.3,3886.2,23.39066567]
[1760141745246,1.20064118,3887.6,3886.2,23.39066567]
[1760141745582,1.15760885,3886.8,3886.2,24.46292189]
[1760141745791,0.01477266,3886.7,3886.2,24.46292189]
[1760141746081,0.14446355,3886.6,3886.2,24.3280668]
[1760141746376,0.01477266,3886.5,3886.2,24.3280668]
[1760141746563,0.15111188,3886.4,3886.2,24.3280668]
[1760141746874,0.15111188,3886.4,3886.2,25.34673399]
[1760141747082,1.18026685,3886.3,3886.2,25.16880045]
[1760141747290,2.58466811,3886.3,3886.2,24.68847013]
[1760141747467,1.18026685,3886.3,3886.2,24.28466012]
[1760141747672,1.18026685,3886.3,3886.2,24.16271208]
[1760141747987,2.57021641,3886.3,3886.2,23.07107643]
[1760141748192,1.43862613,3886.3,3886.2,24.17912839]
[1760141748482,2.25835926,3886.3,3886.2,24.17912839]
[1760141748654,2.41628101,3886.3,3886.2,24.17912839]
[1760141748858,2.41628101,3886.3,3886.2,24.05718035]
[1760141749059,2.25835926,3886.3,3886.2,23.9223345]
[1760141749260,1.15792174,3886.3,3886.2,23.9223345]
[1760141749462,1.15792174,3886.3,3886.2,23.66694893]
[1760141749783,1.15792174,3886.3,3886.2,23.8139161]
[1760141749983,1.15792174,3886.3,3886.2,23.69196806]
[1760141750387,1.15792174,3886.3,3886.2,23.53694208]
[1760141750598,0.99999999,3886.3,3886.2,23.38491506]
[1760141750757,1.15529804,3886.3,3886.2,22.01071197]
[1760141750951,0.15188369,3886.3,3886.2,22.94629779]
[1760141751183,1.38888084,3886.3,3886.2,22.94629779]
[1760141751501,1.38888084,3886.3,3886.2,18.67670872]
[1760141751502,0.30517087,3886.3,3886.2,18.67670872]
[1760141751728,0.1746493,3886.3,3886.2,16.24272148]
[1760141751926,0.29612831,3886.3,3886.2,15.96372148]
[1760141752143,0.29612831,3886.3,3886.2,16.87730228]
[1760141752340,0.12147901,3886.3,3886.2,15.47723523]
[1760141752494,1.37983828,3886.3,3886.2,14.61272991]
[1760141752695,1.42633573,3886.3,3886.2,14.30723346]
[1760141752943,0.12147901,3886.3,3886.2,13.10814459]
[1760141753157,0.99999999,3886.4,3886.2,10.59740661]
[1760141753316,0.12147901,3886.3,3886.2,9.40384203]
[1760141753641,0.27651743,3886.3,3886.2,9.88149378]
[1760141753833,0.27651743,3886.3,3886.2,9.21212673]
[1760141754036,0.27651743,3886.3,3886.2,7.76570911]
[1760141754338,0.47230593,3886.3,3886.2,3.68944585]
[1760141754539,1.63197939,3886.3,3886.2,1.41535556]
[1760141754745,2.24248336,3886.2,3886.1,4.67412771]
[1760141754946,2.24248336,3886.2,3886.1,4.51056066]
[1760141754947,1.28754758,3886.2,3886.1,4.51056066]
[1760141755121,1.28754758,3886.2,3886.1,4.21211064]
[1760141755460,1.28754758,3886.2,3886.1,3.08397939]
[1760141755666,1.28754758,3886.2,3886.1,2.51294921]
[1760141755969,2.49676265,3886.2,3886.1,1.51248608]
[1760141756117,2.49676265,3886.2,3886.1,0.10502295]
[1760141756118,1.28754758,3886.2,3886.1,0.10502295]
[1760141756468,0.99999999,3885.5,3885.4,39.13707365]
[1760141756615,1.43605595,3885.5,3885.4,37.5354203]
[1760141756964,1.43605595,3885.5,3885.4,35.75163889]
[1760141756965,1.23249999,3885.5,3885.4,35.75163889]
[1760141757175,1.353979,3885.5,3885.4,35.13015988]
[1760141757324,1.353979,3885.5,3885.4,34.81339149]
[1760141757658,1.50586269,3885.5,3885.4,34.16449149]
[1760141757816,2.60504792,3885.5,3885.4,34.13781529]
[1760141758020,1.50586269,3885.5,3885.4,33.17857742]
[1760141758217,1.50586269,3885.5,3885.4,31.80859197]
[1760141758418,1.353979,3885.5,3885.4,31.48473082]
[1760141758619,1.353979,3885.5,3885.4,28.29216893]
[1760141758818,1.23249999,3885.5,3885.4,27.48781886]
[1760141759222,1.50586269,3885.5,3885.4,28.20051886]
[1760141759546,1.50586269,3885.5,3885.4,27.20051886]
[1760141759720,1.50586269,3885.5,3885.4,25.94884637]
[1760141759926,1.353979,3885.5,3885.4,24.3788206]
[1760141760262,1.353979,3885.5,3885.4,23.70458294]
[1760141760568,1.51510786,3885.5,3885.4,24.77101589]
[1760141760725,1.353979,3885.5,3885.4,24.56412244]
[1760141760923,1.353979,3885.5,3885.4,24.20595305]
[1760141761176,1.353979,3885.5,3885.4,24.07109295]
[1760141761473,1.54272204,3885.5,3885.4,23.91479411]
[1760141761764,1.54272204,3885.5,3885.4,23.91679411]
[1760141761919,2.57464324,3885.5,3885.4,24.61841579]
[1760141762121,1.3641935,3885.5,3885.4,24.47797335]
[1760141762320,1.23249999,3885.5,3885.4,24.47797335]
[1760141762822,1.23249999,3885.5,3885.4,21.8570673]
[1760141763054,1.86048217,3885.5,3885.4,15.40328984]
[1760141763256,3.73117691,3885.5,3885.4,8.55057261]
[1760141763418,1.23249999,3885.5,3885.4,3.22630903]
[1760141763835,1.353979,3885.5,3885.4,2.22630903]
[1760141764072,0.15968876,3885.4,3885.3,30.38854934]
[1760141764377,1.38988875,3885.4,3885.3,27.79728626]
[1760141764519,2.64550577,3885.4,3885.3,26.30691521]
[1760141764870,1.38988875,3885.4,3885.3,23.59175412]
[1760141765034,1.38988875,3885.4,3885.3,19.4680579]
[1760141765383,1.38988875,3885.4,3885.3,16.19602098]
[1760141765528,1.38988875,3885.4,3885.3,14.45610596]
[1760141765724,1.38988875,3885.4,3885.3,14.31485915]
[1760141765922,1.38988875,3885.4,3885.3,15.11829486]
[1760141766122,1.38988875,3885.4,3885.3,14.68637864]
[1760141766366,1.38988875,3885.4,3885.3,14.50269837]
[1760141766665,2.06345077,3885.4,3885.3,12.88792245]
[1760141766880,2.06345077,3885.4,3885.3,11.86203607]
[1760141767171,2.06345077,3885.4,3885.3,12.95700863]
[1760141767379,2.06345077,3885.4,3885.3,12.92084856]
[1760141768258,9.12345077,3885.4,3885.3,12.92084856]
[1760141768622,9.12345077,3885.4,3885.3,14.15084856]
[1760141769227,2.06345077,3885.4,3885.3,13.92224164]
[1760141769646,9.12345077,3885.4,3885.3,13.92224164]
[1760141770133,9.12345077,3885.4,3885.3,13.78716001]
[1760141770323,9.28906779,3885.4,3885.3,14.98450891]
[1760141771058,9.28906779,3885.4,3885.3,13.6637658]
[1760141771557,7.61550578,3885.4,3885.3,13.6637658]
[1760141771855,8.61550577,3885.4,3885.3,13.6637658]
[1760141772062,8.61550577,3885.4,3885.3,14.8937658]
[1760141772258,8.61550577,3885.4,3885.3,14.75869784]
[1760141773121,8.61550577,3885.4,3885.3,14.62362679]
[1760141773566,108.61550577,3885.4,3885.3,14.62362679]
[1760141773772,108.61550577,3885.4,3885.3,15.85362679]
[1760141775125,108.61550577,3885.4,3885.3,15.718523]
[1760141775562,108.61550577,3885.4,3885.3,16.948523]
[1760141776261,108.61550577,3885.4,3885.3,16.81342187]
[1760141776963,108.61550577,3885.4,3885.3,18.04342187]
[1760141777165,0.99999999,3883.9,3883.8,15.89642493]
[1760141777352,8.18469999,3883.9,3883.8,15.32122493]
[1760141777525,8.18469999,3883.9,3883.8,15.16153617]
[1760141777730,108.18469999,3883.9,3883.8,15.16153617]
[1760141778365,108.18469999,3883.9,3883.8,16.25635451]
[1760141779359,108.18469999,3883.9,3883.8,16.12117662]
[1760141779758,108.18469999,3883.9,3883.8,17.35117662]
[1760141779965,107.1847,3883.9,3883.8,16.67672108]
[1760141780163,108.31983543,3883.9,3883.8,16.67672108]
[1760141780547,8.31983543,3883.9,3883.8,16.67672108]
[1760141781080,8.31983543,3883.9,3883.8,17.90672108]
[1760141781229,8.31983543,3883.9,3883.8,17.7716036]
[1760141781888,108.31983543,3883.9,3883.8,5.47443255]
[1760141782228,108.31983543,3883.9,3883.8,5.33929744]
[1760141782450,108.31983543,3883.9,3883.8,6.56929744]
[1760141783047,7.31983544,3883.9,3883.8,6.56929744]
[1760141783253,8.31983543,3883.9,3883.8,6.56929744]
[1760141783451,108.31983543,3883.9,3883.8,6.56929744]
[1760141783651,108.31983543,3883.9,3883.8,5.89558808]
[1760141783652,8.31983543,3883.9,3883.8,5.89558808]
[1760141783841,8.31983543,3883.9,3883.8,7.12558808]
[1760141784241,8.31983543,3883.9,3883.8,6.99049132]
[1760141785167,8.31983543,3883.9,3883.8,8.22049132]
[1760141785361,8.31983543,3883.9,3883.8,8.08542899]
[1760141786030,7.31983544,3883.9,3883.8,8.08542899]
[1760141786327,8.31983543,3883.9,3883.8,7.41191078]
[1760141786575,8.31983543,3883.9,3883.8,8.64191078]
[1760141787082,8.31983543,3883.9,3883.8,7.98195386]
[1760141787242,8.31983543,3883.9,3883.8,7.84694253]
[1760141788078,8.31983543,3883.9,3883.8,9.07694253]
[1760141788270,8.31983543,3883.9,3883.8,8.94191592]
[1760141789484,8.31983543,3883.9,3883.8,10.17191592]
[1760141789930,8.31983543,3883.9,3883.8,9.49836374]
[1760141790301,8.18469999,3883.9,3883.8,9.36320558]
[1760141790923,7.1847,3883.9,3883.8,9.36320558]
[1760141791077,8.18469999,3883.9,3883.8,10.59320558]
[1760141791283,8.18469999,3883.9,3883.8,10.45805873]
[1760141792588,8.18469999,3883.9,3883.8,11.68805873]
[1760141793005,8.18469999,3883.9,3883.8,11.01427]
[1760141793438,30.68469999,3883.9,3883.8,10.8791067]
[1760141793865,31.934009,3883.9,3883.8,0.57500485]
[1760141794030,31.934009,3883.9,3883.0,5.8e-07]
[1760141794031,2.2904149,3883.1,3883.0,5.8e-07]
[1760141794216,9.3504149,3883.1,3883.0,5.8e-07]
[1760141794423,2.2084619,3882.9,3882.8,1.09481168]
[1760141794831,9.2684619,3882.9,3882.8,1.09481168]
[1760141795257,8.05999999,3882.9,3882.8,1.09481168]
[1760141795468,8.05999999,3882.9,3882.8,2.32481168]
[1760141795674,9.2684619,3882.9,3882.8,2.32481168]
[1760141795824,9.2684619,3882.9,3882.8,1.15e-06]
[1760141796885,9.2684619,3882.9,3882.8,6e-07]
[1760141797936,0.99999999,3880.9,3879.8,15.992]
[1760141798151,8.29249999,3880.9,3879.8,15.992]
[1760141799572,9.55932661,3880.9,3880.8,28.2897]
[1760141799736,9.56021643,3880.9,3880.8,28.2897]
[1760141800070,8.29330885,3880.9,3880.8,1.59656565]
[1760141800230,9.56013547,3880.9,3880.8,1.59656565]
[1760141800432,9.56035139,3880.9,3880.8,1.59656565]
[1760141800668,8.29249999,3880.9,3880.8,1.59656565]
[1760141801203,9.55932661,3880.9,3880.8,2.82656565]
[1760141801346,8.55932662,3880.9,3880.8,2.82656565]
[1760141801684,8.29249999,3880.9,3880.8,2.82656565]
[1760141801911,9.55932661,3880.9,3880.8,2.82656565]
[1760141802095,8.55932662,3880.9,3880.8,2.82656565]
[1760141802301,9.55932661,3880.9,3880.8,2.82656565]
[1760141802449,9.55932661,3880.9,3880.8,4.05656565]
[1760141803398,8.55932662,3880.9,3880.8,4.05656565]
[1760141803599,8.56013548,3880.9,3880.8,4.05656565]
[1760141803900,9.56018944,3880.9,3880.8,5.28656565]
[1760141804102,9.56059439,3880.9,3880.8,5.28656565]
[1760141804478,9.56059439,3880.9,3880.8,4.61117032]
[1760141804677,9.55932661,3880.9,3880.8,4.61117032]
[1760141804990,9.56048637,3880.9,3880.8,4.61117032]
[1760141805191,9.56048637,3880.9,3880.8,5.84117032]
[1760141806215,8.32132661,3880.9,3880.8,5.84117032]
[1760141806378,7.32224343,3880.9,3880.8,5.84117032]
[1760141806582,7.32229741,3880.9,3880.8,7.07117032]
[1760141806778,8.32132661,3880.9,3880.8,7.07117032]
[1760141806986,8.32324297,3880.9,3880.8,7.07117032]
[1760141807194,7.32324298,3880.9,3880.8,7.06717133]
[1760141807399,8.32324297,3880.9,3880.8,7.06717133]
[1760141807614,7.32324298,3880.9,3880.8,7.06717133]
[1760141808021,8.32324297,3880.9,3880.8,7.06717133]
[1760141808332,8.32324297,3880.9,3880.8,7.62111182]
[1760141808691,8.32324297,3880.9,3880.8,4.921e-05]
[1760141808893,1.00215977,3880.4,3880.2,8.89287012]
[1760141809135,7.29290113,3880.3,3880.2,8.89057012]
[1760141809489,7.29290113,3880.3,3880.2,9.4581685]
[1760141809819,7.29290113,3880.3,3880.2,9.4081685]
[1760141809986,12.44720113,3880.3,3880.2,9.4081685]
[1760141810788,14.67966373,3880.3,3880.2,9.4081685]
[1760141811126,14.67966373,3880.3,3880.2,10.6381685]
[1760141811323,13.44720112,3880.3,3880.2,10.37985972]
[1760141811687,12.44720113,3880.3,3880.2,10.37985972]
[1760141811882,13.44720112,3880.3,3880.2,10.37985972]
[1760141812100,12.44720113,3880.3,3880.2,10.37985972]
[1760141812307,14.67966373,3880.3,3880.2,11.60985972]
[1760141812714,14.67966373,3880.3,3880.2,8.96173133]
[1760141812951,14.67966373,3880.3,3880.2,6.13773133]
[1760141813154,0.00267405,3880.0,3879.9,93.42773133]
[1760141813442,12.44497405,3880.0,3879.9,80.71973133]
[1760141813606,12.44497405,3880.0,3879.9,30.87486717]
[1760141813806,1.00286363,3879.9,3879.8,6.77569992]
[1760141814127,1.00278237,3879.7,3879.5,67.45115683]
[1760141814327,7.16161989,3879.6,3879.5,33.23033816]
[1760141814517,7.16161989,3879.6,3879.5,6.26896624]
[1760141814518,14.53007855,3879.6,3879.5,6.26896624]
[1760141814716,14.53007855,3879.6,3875.8,0.41158539]
[1760141814717,0.99999999,3875.9,3875.8,0.41158539]
[1760141814917,1.00345996,3874.4,3874.3,0.02545085]
[1760141815101,13.23253262,3874.4,3874.3,0.02545085]
[1760141815307,13.31675996,3874.4,3872.1,1.23]
[1760141815527,7.16216172,3874.3,3874.2,6.45458043]
[1760141815807,7.16216172,3874.3,3871.7,10.55858043]
[1760141815808,1.00332437,3871.8,3871.7,10.55858043]
[1760141816138,1.00332437,3871.8,3871.2,4.92]
[1760141816139,0.99999999,3871.4,3871.2,4.738]
[1760141816338,0.99999999,3870.8,3870.7,3.218]
[1760141816647,0.99999999,3868.4,3868.3,20.1531246]
[1760141816937,8.15899999,3868.4,3868.3,20.1531246]
[1760141818907,7.159,3868.4,3868.3,20.1531246]
[1760141819107,8.15899999,3868.4,3868.3,20.1531246]
[1760141819689,7.159,3868.4,3868.3,20.1531246]
[1760141820157,7.29434892,3868.4,3868.3,20.01777177]
[1760141821094,7.29434892,3868.4,3868.3,20.00963332]
[1760141821246,8.29434891,3868.4,3868.3,20.00963332]
[1760141821451,7.29434892,3868.4,3868.3,20.00963332]
[1760141821686,0.23434892,3868.4,3868.3,20.00963332]
[1760141821841,0.19163776,3868.4,3868.3,20.00963332]
[1760141822153,0.19163776,3868.4,3868.3,15.93341031]
[1760141823152,0.19163776,3868.4,3868.3,15.23430794]
[1760141823770,0.19163776,3868.4,3868.3,16.46430794]
[1760141824642,1.19163775,3868.4,3868.3,16.46430794]
[1760141824843,0.19163776,3868.4,3868.3,16.46430794]
[1760141825046,1.19163775,3868.4,3868.3,16.46430794]
[1760141825244,0.19163776,3868.4,3868.3,17.69430794]
[1760141825674,1.19163775,3868.4,3868.3,17.69430794]
[1760141826358,1.19163775,3868.4,3868.3,17.55889651]
[1760141826697,0.19163776,3868.4,3868.3,18.78889651]
[1760141828288,1.19163775,3868.4,3868.3,20.01889651]
[1760141828599,0.19163776,3868.4,3868.3,20.01889651]
[1760141829094,0.16832561,3868.4,3868.3,20.01889651]
[1760141829296,0.16832561,3868.4,3868.3,19.88348304]
[1760141829508,0.16832561,3868.4,3868.3,21.11348304]
[1760141830968,7.22832561,3868.4,3868.3,22.34348304]
[1760141832265,8.09297668,3868.4,3868.3,23.43801509]
[1760141832461,8.22846229,3868.4,3868.3,23.43801509]
[1760141833155,7.2284623,3868.4,3868.3,23.43801509]
[1760141833362,8.22846229,3868.4,3868.3,23.41206303]
[1760141833564,8.22846229,3868.4,3868.3,23.41406303]
[1760141833763,8.22846229,3868.4,3868.3,24.64406303]
[1760141835195,8.89171798,3868.4,3868.3,24.26384458]
[1760141836324,1.83171798,3868.4,3868.3,24.26384458]
[1760141836520,1.83171798,3868.4,3868.3,25.49384458]
[1760141837985,1.83171798,3868.4,3868.3,26.72384458]
[1760141838198,1.83171798,3868.4,3868.3,26.45279154]
[1760141838809,1.83171798,3868.4,3868.3,25.09952699]
[1760141839316,1.83171798,3868.4,3868.3,22.02952699]
[1760141840031,1.83171798,3868.4,3868.3,17.72952699]
[1760141840337,1.83171798,3868.4,3868.3,13.42952699]
[1760141840824,1.83171798,3868.4,3868.3,14.65952699]
[1760141841185,1.83171798,3868.4,3868.3,14.38843865]
[1760141841399,0.83171799,3868.4,3868.3,14.38843865]
[1760141841614,1.83171798,3868.4,3868.3,14.38843865]
[1760141841815,8.89171798,3868.4,3868.3,14.38843865]
[1760141842237,8.89171798,3868.4,3868.3,15.61843865]
[1760141842610,7.89171799,3868.4,3868.3,15.61843865]
[1760141843121,8.89171798,3868.4,3868.3,15.61843865]
[1760141843324,7.89171799,3868.4,3868.3,11.31843865]
[1760141843523,1.83171798,3868.4,3868.3,12.54843865]
[1760141843849,0.83171799,3868.4,3868.3,8.24843865]
[1760141844149,0.45422907,3868.4,3868.3,8.24843865]
[1760141844443,0.58970494,3868.4,3868.3,3.81296469]
[1760141844821,0.58970494,3868.4,3868.3,5.04296469]
[1760141846250,0.58970494,3868.4,3868.3,6.27296469]
[1760141847326,0.45422907,3868.4,3868.3,6.00193219]
[1760141847628,0.58975575,3868.4,3868.3,7.23193219]
[1760141848528,7.64975575,3868.4,3868.3,7.23193219]
[1760141849048,7.64975575,3868.4,3868.3,8.46193219]
[1760141850356,7.64975575,3868.4,3868.3,9.55645018]
[1760141851556,7.64975575,3868.4,3868.3,9.55845018]
[1760141851752,7.65075575,3868.4,3868.3,10.78845018]
[1760141853032,7.65075575,3868.4,3868.3,12.01845018]
[1760141854558,7.65075575,3868.4,3868.3,13.24845018]
[1760141855263,7.65075575,3868.4,3868.3,12.57227669]
[1760141855441,7.65075575,3868.4,3868.3,12.02225]
[1760141855835,7.65075575,3868.4,3868.3,13.25225]
[1760141856486,7.65075575,3868.4,3868.3,8.95225]
[1760141856830,7.65075575,3868.4,3868.3,4.65225]
[1760141857249,7.65075575,3868.4,3868.3,1.58225]
[1760141857250,8.65075574,3868.4,3868.3,1.58225]
[1760141857836,0.99999999,3867.9,3866.1,0.04625]
[1760141858146,0.99999999,3867.5,3865.0,1.78595503]
[1760141858335,0.99999999,3867.2,3865.0,1.78595503]
[1760141858537,0.99999999,3867.0,3865.0,2.96085503]
[1760141858734,8.05999999,3867.4,3865.0,2.96085503]
[1760141858945,7.06,3867.4,3865.0,2.82532591]
[1760141859177,7.06,3867.3,3865.0,2.82532591]
[1760141859539,0.59075575,3868.4,3865.0,2.82532591]
[1760141859540,7.06,3868.1,3865.0,2.82532591]
[1760141860050,7.06,3868.1,3865.0,4.05532591]
[1760141860249,0.01477266,3868.0,3865.0,4.05532591]
[1760141860447,7.07477266,3868.0,3865.0,4.05532591]
[1760141860653,7.06,3868.0,3865.0,4.05532591]
[1760141860868,0.99999999,3867.7,3865.0,4.05532591]
[1760141861166,0.99999999,3867.4,3865.0,4.05532591]
[1760141861340,7.06,3868.2,3865.0,5.28532591]
[1760141861545,0.45522907,3868.4,3865.0,5.28532591]
[1760141861546,0.99999999,3867.5,3865.0,5.28532591]
[1760141861754,0.99999999,3866.9,3865.0,5.28532591]
[1760141861954,7.06,3866.8,3865.0,5.28532591]
[1760141862774,0.01477266,3866.7,3865.0,6.51532591]
[1760141862987,7.07477266,3866.6,3865.0,6.51532591]
[1760141863282,7.06,3866.5,3865.0,6.51532591]
[1760141863443,7.06,3866.6,3865.0,6.51532591]
[1760141864340,7.06,3866.5,3865.0,7.74532591]
[1760141864545,7.07477266,3866.4,3865.0,7.74532591]
[1760141864749,0.99999999,3866.2,3865.0,7.74532591]
[1760141864949,0.99999999,3865.6,3865.0,7.74532591]
[1760141865285,7.07477266,3865.5,3865.0,6.25572568]
[1760141865482,0.99999999,3865.1,3865.0,6.12014803]
[1760141865655,8.05999999,3865.1,3865.0,7.35014803]
[1760141866368,7.06,3865.1,3865.0,7.35014803]
[1760141866876,8.05999999,3865.1,3865.0,7.35014803]
[1760141867079,7.06,3865.1,3865.0,8.58014803]
[1760141867285,8.05999999,3865.1,3865.0,8.58014803]
[1760141868045,8.05999999,3865.1,3865.0,7.25206742]
[1760141868949,8.05999999,3865.1,3865.0,8.48206742]
[1760141869590,8.05999999,3865.1,3865.0,8.47113081]
[1760141869791,8.05999999,3865.1,3865.0,8.33552117]
[1760141869960,8.05999999,3865.1,3865.0,8.28552117]
[1760141870153,8.05999999,3865.1,3865.0,8.23552117]
[1760141870356,8.05999999,3865.1,3865.0,9.46552117]
[1760141871152,8.05999999,3865.1,3865.0,8.80135381]
[1760141872088,8.05999999,3865.1,3865.0,10.03135381]
[1760141872496,13.23459999,3865.1,3865.0,9.842]
[1760141872809,12.2346,3865.1,3865.0,9.842]
[1760141872961,13.23459999,3865.1,3865.0,8.55988946]
[1760141873166,14.52252982,3865.1,3865.0,8.55988946]
[1760141873499,4.78292544,3865.1,3865.0,8.13939775]
[1760141873655,11.84292544,3865.1,3865.0,8.13939775]
[1760141873860,11.84292544,3865.1,3865.0,8.11353367]
[1760141874490,11.84292544,3865.1,3865.0,8.08766959]
[1760141874669,11.84292544,3865.1,3865.0,9.31766959]
[1760141874883,11.84292544,3865.1,3865.0,9.29180551]
[1760141875967,11.84292544,3865.1,3865.0,10.52180551]
[1760141876362,10.84292545,3865.1,3865.0,10.52180551]
[1760141876589,11.84292544,3865.1,3865.0,10.52180551]
[1760141876778,10.84292545,3865.1,3865.0,10.52180551]
[1760141876975,11.84292544,3865.1,3865.0,10.52180551]
[1760141877865,11.84292544,3865.1,3865.0,11.7388689]
[1760141878086,11.84292544,3865.1,3865.0,11.73478465]
[1760141878689,10.84292545,3865.1,3865.0,11.73478465]
[1760141878889,11.84292544,3865.1,3865.0,11.73478465]
[1760141879073,10.84292545,3865.1,3865.0,11.73478465]
[1760141879281,11.84292544,3865.1,3865.0,12.96478465]
[1760141879588,10.84292545,3865.1,3865.0,12.96478465]
[1760141879786,11.84292544,3865.1,3865.0,12.96478465]
[1760141880869,11.84292544,3865.1,3865.0,14.19478465]
[1760141881269,10.84292545,3865.1,3865.0,14.19478465]
[1760141881471,11.84292544,3865.1,3865.0,14.19478465]
[1760141881711,3.48547191,3865.1,3865.0,14.19478465]
[1760141881868,4.4854719,3865.1,3865.0,14.19478465]
[1760141882073,4.5085719,3865.1,3865.0,14.19478465]
[1760141882300,4.5085719,3865.1,3865.0,15.42478465]
[1760141883024,4.5085719,3865.1,3865.0,15.41184804]
[1760141883174,4.5085719,3865.1,3865.0,15.39891143]
[1760141883608,4.5085719,3865.1,3865.0,16.61597482]
[1760141883767,4.5085719,3865.1,3865.0,16.60303821]
[1760141884273,4.5085719,3865.1,3865.0,16.5901016]
[1760141884469,4.5085719,3865.1,3865.0,16.57716499]
[1760141885597,4.5085719,3865.1,3865.0,17.79422838]
[1760141886676,3.50857191,3865.1,3865.0,17.79422838]
[1760141886979,4.5095719,3865.1,3865.0,19.02422838]
[1760141888429,4.5095719,3865.1,3865.0,20.25422838]
[1760141889722,4.5095719,3865.1,3865.0,21.48422838]
[1760141890178,3.50957191,3865.1,3865.0,21.48422838]
[1760141890602,4.5095719,3865.1,3865.0,21.48422838]
[1760141890801,3.50957191,3865.1,3865.0,21.48422838]
[1760141891496,4.5095719,3865.1,3865.0,21.48422838]
[1760141891705,4.5095719,3865.1,3865.0,22.70129177]
[1760141891903,4.5095719,3865.1,3865.0,22.68835516]
[1760141892313,9.6841719,3865.1,3865.0,22.67541855]
[1760141892493,9.6841719,3865.1,3865.0,22.66248194]
[1760141892699,9.6841719,3865.1,3865.0,22.64954533]
[1760141893101,9.6841719,3865.1,3865.0,23.86660872]
[1760141893426,9.6841719,3865.1,3865.0,23.85367211]
[1760141893622,9.6841719,3865.1,3865.0,23.8407355]
[1760141893791,9.6841719,3865.1,3865.0,23.82779889]
[1760141894388,9.6841719,3865.1,3865.0,25.05779889]
[1760141895110,9.6841719,3865.1,3865.0,25.04486228]
[1760141895438,9.6841719,3865.1,3865.0,25.03192567]
[1760141895641,9.6841719,3865.1,3865.0,26.24898906]
[1760141895963,9.6841719,3865.1,3865.0,26.23605245]
[1760141896107,9.6841719,3865.1,3865.0,26.22311584]
[1760141896308,9.6841719,3865.1,3865.0,26.21017923]
[1760141896512,8.68417191,3865.1,3865.0,26.21017923]
[1760141896742,9.6841719,3865.1,3865.0,26.19724262]
[1760141897045,8.68417191,3865.1,3865.0,27.42165461]
[1760141897352,9.6841719,3865.1,3865.0,27.04913188]
[1760141898242,9.6841719,3865.1,3865.0,26.07247091]
[1760141898403,9.6841719,3865.1,3865.0,27.29691364]
[1760141899102,8.68417191,3865.1,3865.0,27.29691364]
[1760141899303,9.6841719,3865.1,3865.0,27.29691364]
[1760141899734,9.6841719,3865.1,3865.0,28.52691364]
[1760141900153,8.68417191,3865.1,3865.0,28.52691364]
[1760141900508,9.6841719,3865.1,3865.0,28.52691364]
[1760141901706,9.6841719,3865.1,3865.0,29.75691364]
[1760141903151,9.6841719,3865.1,3865.0,30.98691364]
[1760141904047,8.68417191,3865.1,3865.0,30.98691364]
[1760141904416,9.6841719,3865.1,3865.0,30.98691364]
[1760141904615,9.6841719,3865.1,3865.0,32.21691364]
[1760141905438,9.6841719,3865.1,3865.0,31.982]
[1760141906148,9.6841719,3865.1,3865.0,33.212]
[1760141907461,9.6841719,3865.1,3865.0,34.442]
[1760141908321,8.68417191,3865.1,3865.0,34.442]
[1760141908743,8.68417191,3865.1,3865.0,35.672]
[1760141908940,9.6841719,3865.1,3865.0,35.672]
[1760141909735,8.68417191,3865.1,3865.0,35.672]
[1760141909937,9.6841719,3865.1,3865.0,35.672]
[1760141910160,8.81991117,3865.1,3865.0,36.63052248]
[1760141910358,9.81991116,3865.1,3865.0,36.63052248]
[1760141910866,8.81991117,3865.1,3865.0,36.63052248]
[1760141911032,9.81991116,3865.1,3865.0,36.63052248]
[1760141911434,9.81991116,3865.1,3865.0,37.86052248]
[1760141912466,8.81991117,3865.1,3865.0,37.86052248]
[1760141912764,9.81991116,3865.1,3865.0,37.86052248]
[1760141912967,9.81991116,3865.1,3865.0,39.09052248]
[1760141913140,16.87991116,3865.1,3865.0,38.81906671]
[1760141913344,0.99999999,3865.1,3865.0,38.0632985]
[1760141913544,8.19573223,3865.1,3865.0,38.0632985]